bitfinex-derivatives/quotes_SOLF0:USTF0_20250603
["timestamp","ask_amount","ask_price","bid_price","bid_amount"]
[1748942844234,10.48824676,158.92,158.91,0.04248382]
[1748942845328,6.289,158.92,158.91,0.04248382]
[1748942856552,6.2908,158.88,158.85,12.39251188]
[1748942856742,6.2908,158.88,158.84,36.79222611]
[1748942857043,6.56028577,158.91,158.84,30.96]
[1748942857044,6.56028577,158.89,158.84,30.96]
[1748942857244,6.56028577,158.89,158.82,12.39251188]
[1748942857748,0.04096867,158.87,158.84,0.04108935]
[1748942857950,6.2918,158.85,158.84,0.04108935]
[1748942858542,37.54125444,158.87,158.79,5.83580847]
[1748942858749,6.56028577,158.85,158.79,12.12990847]
[1748942858943,6.56028577,158.85,158.79,6.2941]
[1748942859548,0.04150535,158.84,158.8,0.04302421]
[1748942859948,6.2927,158.83,158.8,0.04302421]
[1748942860743,6.2931,158.82,158.8,0.04302421]
[1748942861348,6.2928,158.83,158.8,0.04302421]
[1748942861853,0.04150535,158.84,158.8,0.04302421]
[1748942862044,6.33400535,158.84,158.8,0.04302421]
[1748942862240,6.33400535,158.84,158.8,6.33662421]
[1748942862648,0.04150535,158.84,158.8,6.33662421]
[1748942863151,6.2926,158.83,158.8,6.33662421]
[1748942867357,6.293,158.82,158.8,0.04302421]
[1748942868554,6.2934,158.81,158.8,0.04302421]
[1748942880664,6.56028577,158.81,158.75,30.94]
[1748942881168,6.2944,158.79,158.77,6.2947]
[1748942881773,6.33452039,158.8,158.77,6.2947]
[1748942881968,0.04052039,158.8,158.76,0.04360609]
[1748942882171,0.04052039,158.8,158.76,6.60389186]
[1748942882668,0.04052039,158.8,158.79,6.2942]
[1748942895378,0.04052039,158.8,158.79,10.4967155]
[1748942897376,0.04052039,158.8,158.79,12.13326278]
[1748942899675,0.04052039,158.8,158.79,12.14404273]
[1748942900282,0.04052039,158.8,158.79,6.2942]
[1748942902276,0.04052039,158.8,158.78,38.7077327]
[1748942902480,0.04052039,158.8,158.79,5.86246306]
[1748942903382,0.04052039,158.8,158.78,5.86246306]
[1748942903383,6.33462039,158.8,158.78,5.86246306]
[1748942903583,6.33462039,158.8,158.78,5.865376]
[1748942905583,6.2942,158.79,158.78,5.865376]
[1748942906683,6.33452039,158.8,158.78,12.159976]
[1748942908085,0.04052039,158.8,158.79,6.2942]
[1748942908284,0.04052039,158.8,158.79,12.159576]
[1748942911388,0.04052039,158.8,158.79,12.160344]
[1748942912886,0.04052039,158.8,158.79,6.2942]
[1748942915788,0.04052039,158.8,158.79,12.16096919]
[1748942919200,0.04052039,158.8,158.79,6.2942]
[1748942919495,0.04052039,158.8,158.79,12.16131156]
[1748942919889,6.33432039,158.8,158.79,5.86711156]
[1748942923200,6.33432039,158.8,158.79,5.86740869]
[1748942923900,0.04052039,158.8,158.79,12.16160869]
[1748942924602,0.04052039,158.8,158.79,16.36550888]
[1748942925701,0.04052039,158.8,158.79,10.49810019]
[1748942925996,0.04052039,158.8,158.79,16.36464268]
[1748942926802,0.04052039,158.8,158.79,10.49810019]
[1748942927903,0.04052039,158.8,158.79,16.36611825]
[1748942928405,0.04052039,158.8,158.79,10.07191825]
[1748942928603,0.04052039,158.8,158.79,5.86801806]
[1748942930305,6.33432039,158.8,158.79,5.86801806]
[1748942931105,6.33432039,158.8,158.79,5.86898612]
[1748942932801,0.04052039,158.8,158.79,12.16318612]
[1748942935109,0.04052039,158.8,158.79,12.17067051]
[1748942935505,0.04052039,158.8,158.79,5.87647051]
[1748942936811,6.33432039,158.8,158.79,5.87647051]
[1748942937812,6.2942,158.79,158.78,5.87647051]
[1748942938109,6.33452039,158.8,158.77,18.26643289]
[1748942938409,6.33452039,158.8,158.79,5.87806612]
[1748942938611,6.33452039,158.8,158.78,12.17266612]
[1748942938807,6.33452039,158.8,158.79,5.87806612]
[1748942939010,6.33452039,158.8,158.79,5.87855389]
[1748942940812,6.2942,158.79,158.78,5.87855389]
[1748942941512,6.2942,158.79,158.77,10.49870019]
[1748942941712,6.2942,158.79,158.78,5.87962058]
[1748942942014,6.295,158.77,158.76,5.92549956]
[1748942942205,10.49890019,158.77,158.76,5.92549956]
[1748942942404,6.295,158.77,158.76,5.92549956]
[1748942943418,6.295,158.77,158.76,0.04360609]
[1748942945215,30.94,158.79,158.76,6.33900609]
[1748942945216,6.2947,158.78,158.76,6.33900609]
[1748942945909,30.94,158.79,158.76,0.04360609]
[1748942946100,30.94,158.79,158.77,6.295]
[1748942946819,37.2342,158.79,158.77,6.295]
[1748942948917,37.2342,158.79,158.76,6.33880609]
[1748942952016,6.2949,158.78,158.76,0.04360609]
[1748942952521,30.94,158.79,158.76,0.04360609]
[1748942955015,6.295,158.77,158.76,0.04360609]
[1748942956425,6.2947,158.78,158.76,6.33900609]
[1748942963028,37.2344,158.79,158.77,6.295]
[1748942964925,6.2946,158.78,158.76,6.33880609]
[1748942966327,10.49955505,158.78,158.76,0.04360609]
[1748942966530,6.295,158.77,158.76,0.04360609]
[1748942970143,6.2946,158.78,158.76,6.33880609]
[1748942970328,35.14495505,158.79,158.76,0.04360609]
[1748942970728,6.2949,158.78,158.76,0.04360609]
[1748942973337,6.2949,158.78,158.76,6.33890609]
[1748942973839,6.295,158.77,158.76,0.04360609]
[1748942979537,6.295,158.77,158.76,6.33900609]
[1748942981744,6.295,158.77,158.76,0.04360609]
[1748942995250,6.295,158.77,158.71,38.6877327]
[1748942995251,4.20718039,158.77,158.71,38.6877327]
[1748942995448,4.20718039,158.74,158.71,30.92]
[1748942995650,4.20718039,158.74,158.71,6.297]
[1748942995845,4.20718039,158.74,158.7,11.97491309]
[1748942996345,4.24731397,158.74,158.7,12.01530063]
[1748942996850,10.54381397,158.74,158.72,6.2967]
[1748942997239,0.04013358,158.74,158.73,6.2966]
[1748942997445,0.04013358,158.74,158.73,10.50378039]
[1748943007948,4.24731397,158.74,158.73,5.88892133]
[1748943008250,4.24731397,158.74,158.7,5.92930887]
[1748943008451,4.20718039,158.73,158.7,5.92930887]
[1748943008651,4.20718039,158.73,158.7,12.22680887]
[1748943008652,10.50398039,158.73,158.7,12.22680887]
[1748943008849,10.50398039,158.73,158.7,0.04038754]
[1748943009052,6.2968,158.73,158.7,0.04038754]
[1748943009655,10.54371397,158.74,158.71,6.2972]
[1748943010247,10.54371397,158.74,158.7,4.24756793]
[1748943010248,4.24731397,158.74,158.7,4.24756793]
[1748943010449,4.24731397,158.74,158.71,4.20718039]
[1748943010649,0.04013358,158.74,158.72,4.20718039]
[1748943010854,6.33633358,158.74,158.72,6.2967]
[1748943011053,10.54351397,158.74,158.72,6.2967]
[1748943011256,4.24731397,158.74,158.71,6.2973]
[1748943011852,4.24731397,158.74,158.71,12.18189365]
[1748943012045,10.54371397,158.74,158.71,12.18189365]
[1748943012450,10.54371397,158.74,158.72,6.297]
[1748943012746,10.50398039,158.73,158.71,5.88459365]
[1748943012946,10.50398039,158.73,158.71,6.2972]
[1748943015956,6.297,158.72,158.7,6.33798754]
[1748943016163,10.50418039,158.72,158.7,6.33798754]
[1748943017263,4.20718039,158.73,158.71,6.2974]
[1748943017461,0.04013358,158.74,158.71,4.20718039]
[1748943017861,0.04013358,158.74,158.72,6.2967]
[1748943018063,0.04013358,158.74,158.73,4.20718039]
[1748943018264,0.04013358,158.74,158.73,10.50378039]
[1748943018770,0.04013358,158.74,158.73,6.2966]
[1748943019066,0.04013358,158.74,158.73,16.382354]
[1748943019269,0.04013358,158.74,158.73,12.17517361]
[1748943019963,0.04013358,158.74,158.73,6.2966]
[1748943020965,0.04013358,158.74,158.73,12.17517361]
[1748943022667,0.04013358,158.74,158.73,12.17560491]
[1748943024772,0.04013358,158.74,158.73,6.2966]
[1748943025076,0.04013358,158.74,158.73,12.17625441]
[1748943025276,0.04013358,158.74,158.73,12.17608067]
[1748943025669,0.04013358,158.74,158.73,6.2966]
[1748943026469,0.04013358,158.74,158.73,12.1752102]
[1748943026677,0.04013358,158.74,158.73,12.17496035]
[1748943026973,0.04013358,158.74,158.73,6.2966]
[1748943027975,0.04013358,158.74,158.73,12.17469375]
[1748943028172,0.04013358,158.74,158.73,6.2966]
[1748943029274,0.04013358,158.74,158.73,12.17485508]
[1748943029678,0.04013358,158.74,158.73,6.2966]
[1748943030573,0.04013358,158.74,158.73,12.17469563]
[1748943030773,0.04013358,158.74,158.73,6.2966]
[1748943031277,0.04013358,158.74,158.73,12.17527791]
[1748943032974,0.04013358,158.74,158.73,5.87867791]
[1748943033276,0.04013358,158.74,158.71,5.88035192]
[1748943033472,0.04013358,158.74,158.73,6.2966]
[1748943041187,0.04013358,158.74,158.73,10.50325198]
[1748943049293,0.04013358,158.74,158.73,6.2966]
[1748943051093,0.04013358,158.74,158.73,10.50325198]
[1748943051293,0.04013358,158.74,158.73,6.2966]
[1748943051498,0.04013358,158.74,158.73,10.50325198]
[1748943052596,0.04013358,158.74,158.73,16.38785173]
[1748943053294,6.33633358,158.74,158.73,4.20665198]
[1748943053590,0.04013358,158.74,158.71,10.09125173]
[1748943053989,6.2966,158.73,158.71,10.09125173]
[1748943054190,6.2966,158.73,158.71,10.09389085]
[1748943054503,6.2966,158.73,158.71,16.39099085]
[1748943058001,6.2966,158.73,158.71,10.50375198]
[1748943058295,6.33653358,158.74,158.71,16.39220388]
[1748943059104,0.04013358,158.74,158.73,4.20665198]
[1748943059401,0.04013358,158.74,158.73,10.50325198]
[1748943060598,0.04013358,158.74,158.73,16.39170388]
[1748943061302,0.04013358,158.74,158.73,10.09563258]
[1748943061905,0.04013358,158.74,158.73,4.20665198]
[1748943062203,0.04013358,158.74,158.73,10.50325198]
[1748943062802,0.04013358,158.74,158.73,16.39223258]
[1748943064607,0.04013358,158.74,158.73,16.3945356]
[1748943066601,6.27995198,158.76,158.73,16.3945356]
[1748943066602,1.9928,158.8,158.77,6.295]
[1748943066800,32.8928,158.8,158.77,10.50165198]
[1748943067203,39.1868,158.8,158.77,10.50165198]
[1748943067702,39.23042705,158.8,158.77,10.54849241]
[1748943067897,32.93642705,158.8,158.77,4.25349241]
[1748943068907,39.23022705,158.8,158.77,4.25349241]
[1748943069103,32.93642705,158.8,158.77,4.25349241]
[1748943069406,32.93642705,158.8,158.78,6.2944]
[1748943070199,32.93642705,158.8,158.79,6.2942]
[1748943071709,30.94362705,158.8,158.79,10.50085198]
[1748943071907,0.04362705,158.8,158.79,10.50085198]
[1748943075311,0.04362705,158.8,158.79,12.86022285]
[1748943076608,35.0489,158.86,158.79,6.56602285]
[1748943076815,35.0489,158.86,158.79,12.44615632]
[1748943076816,41.3405,158.86,158.79,12.44615632]
[1748943077005,41.3405,158.86,158.82,6.56602285]
[1748943077207,41.3405,158.86,158.83,6.2924]
[1748943077715,39.30701235,158.86,158.83,6.33694204]
[1748943078111,0.04651235,158.86,158.84,6.56602285]
[1748943078615,0.04651235,158.86,158.85,6.2918]
[1748943079715,0.04651235,158.86,158.84,12.85812285]
[1748943080413,6.33801235,158.86,158.84,12.85812285]
[1748943080613,0.04651235,158.86,158.85,6.2918]
[1748943083011,30.98,158.93,158.89,6.2901]
[1748943083212,30.98,158.93,158.88,6.56602285]
[1748943083914,30.98,158.93,158.9,6.2898]
[1748943084108,30.98,158.93,158.9,6.3351288]
[1748943084109,31.02142421,158.93,158.9,6.3351288]
[1748943084308,6.2891,158.92,158.9,6.3351288]
[1748943084816,6.2891,158.92,158.9,0.0453288]
[1748943086314,37.31022421,158.93,158.9,6.3348288]
[1748943086515,31.02142421,158.93,158.9,6.61135165]
[1748943087428,37.31012421,158.93,158.9,12.90105165]
[1748943088009,6.2894,158.91,158.9,6.61135165]
[1748943089819,31.02142421,158.93,158.9,6.61135165]
[1748943090027,31.02142421,158.93,158.9,0.0453288]
[1748943093120,6.2893,158.92,158.9,6.3351288]
[1748943093920,6.2893,158.92,158.9,0.0453288]
[1748943094214,6.2894,158.91,158.9,0.0453288]
[1748943096727,6.2892,158.92,158.9,0.0453288]
[1748943098227,31.02142421,158.93,158.91,6.2894]
[1748943098525,0.04142421,158.93,158.91,6.2894]
[1748943100427,0.04142421,158.93,158.92,6.289]
[1748943102630,0.04142421,158.93,158.9,0.0453288]
[1748943102935,0.04142421,158.93,158.9,6.61135165]
[1748943104128,0.04142421,158.93,158.92,6.56602285]
[1748943105133,0.04142421,158.93,158.92,12.85502285]
[1748943108233,0.04142421,158.93,158.92,6.56602285]
[1748943108540,0.04142421,158.93,158.9,6.61135165]
[1748943109037,0.04142421,158.93,158.9,0.0453288]
[1748943109536,6.2894,158.91,158.9,0.0453288]
[1748943117052,10.2886,158.91,158.9,0.0453288]
[1748943121447,8.28,158.91,158.9,0.0453288]
[1748943121655,39.7346,158.92,158.9,0.0453288]
[1748943122652,6.2894,158.91,158.9,0.0453288]
[1748943127865,31.34,158.92,158.9,6.3351288]
[1748943128063,31.34,158.92,158.9,0.0453288]
[1748943128363,6.33042421,158.93,158.9,0.0453288]
[1748943128364,0.04142421,158.93,158.9,0.0453288]
[1748943129253,0.04142421,158.93,158.91,6.2891]
[1748943130162,0.04142421,158.93,158.92,6.289]
[1748943130349,0.04142421,158.93,158.92,12.85502285]
[1748943131757,0.04142421,158.93,158.91,6.2893]
[1748943131961,0.04142421,158.93,158.9,6.61135165]
[1748943133250,0.04142421,158.93,158.9,0.0453288]
[1748943134548,0.04142421,158.93,158.91,6.2894]
[1748943134757,0.04142421,158.93,158.91,6.56602285]
[1748943134956,0.04142421,158.93,158.91,12.43488448]
[1748943135458,0.04142421,158.93,158.92,6.289]
[1748943137358,0.04142421,158.93,158.91,12.43488448]
[1748943137359,0.04142421,158.93,158.91,12.85532285]
[1748943137963,0.04142421,158.93,158.92,6.289]
[1748943138559,6.33012421,158.93,158.9,0.0453288]
[1748943138959,6.33012421,158.93,158.9,6.3348288]
[1748943139359,6.33012421,158.93,158.9,0.0453288]
[1748943140264,6.33012421,158.93,158.91,6.2894]
[1748943141464,0.04142421,158.93,158.91,6.2894]
[1748943142261,0.04142421,158.93,158.92,6.289]
[1748943149673,0.04142421,158.93,158.91,18.72334246]
[1748943149974,0.04142421,158.93,158.9,0.0453288]
[1748943150563,0.04142421,158.93,158.9,5.91334841]
[1748943151073,0.04142421,158.93,158.92,6.289]
[1748943154881,6.33002421,158.93,158.91,6.2893]
[1748943155384,0.04142421,158.93,158.92,6.289]
[1748943155976,0.04142421,158.93,158.9,12.47937126]
[1748943155977,6.33002421,158.93,158.91,6.2892]
[1748943156375,0.04142421,158.93,158.9,12.47937126]
[1748943156985,0.04142421,158.93,158.9,6.61135165]
[1748943157977,0.04142421,158.93,158.92,6.289]
[1748943158980,6.33002421,158.93,158.91,6.2893]
[1748943159284,0.04142421,158.93,158.9,12.48412756]
[1748943159483,0.04142421,158.93,158.92,6.289]
[1748943171282,0.04142421,158.93,158.92,10.48542875]
[1748943172586,0.04142421,158.93,158.92,16.36654294]
[1748943173282,0.04142421,158.93,158.92,18.72531904]
[1748943175987,0.04142421,158.93,158.92,18.73321334]
[1748943177379,0.04142421,158.93,158.92,12.84420485]
[1748943181999,0.04142421,158.93,158.92,18.73288074]
[1748943185095,0.04142421,158.93,158.92,12.17767589]
[1748943186404,0.04142421,158.93,158.92,12.17818705]
[1748943187985,0.04142421,158.93,158.91,5.88918705]
[1748943188598,6.33022421,158.93,158.91,5.88918705]
[1748943189496,6.289,158.92,158.91,5.88918705]
[1748943189997,0.04142421,158.93,158.91,5.88918705]
[1748943190202,6.33022421,158.93,158.9,6.3349288]
[1748943190400,6.33022421,158.93,158.91,5.8893863]
[1748943191004,0.04142421,158.93,158.91,5.8893863]
[1748943191703,0.04142421,158.93,158.91,12.1787863]
[1748943192007,0.04142421,158.93,158.91,5.8893863]
[1748943192208,0.04142421,158.93,158.92,6.289]
[1748943194302,2.421e-05,158.93,158.92,6.289]
[1748943196507,2.421e-05,158.93,158.92,14.14057489]
[1748943199304,2.421e-05,158.93,158.92,6.289]
[1748943201213,2.421e-05,158.93,158.92,10.48409425]
[1748943202718,2.421e-05,158.93,158.92,18.33566914]
[1748943203714,2.421e-05,158.93,158.92,10.48409425]
[1748943203914,2.421e-05,158.93,158.92,18.33566914]
[1748943208110,2.0074,158.98,158.97,6.2871]
[1748943208313,2.1067,159.02,158.97,10.07778266]
[1748943208513,2.1067,159.02,158.99,4.19509425]
[1748943208712,6.2857,159.01,158.99,4.19509425]
[1748943208920,2.1067,159.02,158.99,10.48129425]
[1748943209112,8.43764822,159.02,158.99,10.52831578]
[1748943209317,2.15234822,159.02,158.99,10.52831578]
[1748943209917,8.43774822,159.02,158.99,10.52831578]
[1748943210610,8.43774822,159.02,159.0,2.64502332]
[1748943210812,8.43774822,159.02,159.01,2.64502308]
[1748943211018,8.43774822,159.02,158.99,10.52831578]
[1748943211217,8.43774822,159.02,159.0,6.2858]
[1748943211810,6.2856,159.01,158.99,6.33312153]
[1748943212322,6.2856,159.01,159.0,2.64504297]
[1748943212721,6.2856,159.01,158.99,6.33312153]
[1748943212912,6.2856,159.01,159.0,2.64508352]
[1748943213116,6.2856,159.01,158.99,6.33312153]
[1748943213617,6.2856,159.01,159.0,2.64771425]
[1748943213816,6.2856,159.01,158.99,6.33312153]
[1748943215125,2.15234822,159.02,159.0,2.64769564]
[1748943215319,2.15234822,159.02,159.01,2.64769564]
[1748943215526,8.43744822,159.02,159.01,2.64769564]
[1748943215725,2.15234822,159.02,158.99,6.33312153]
[1748943216318,6.2855,159.01,158.99,6.33312153]
[1748943216523,6.2855,159.01,159.0,2.64894965]
[1748943216724,6.2855,159.01,158.99,6.33312153]
[1748943216929,6.2855,159.01,159.0,2.64894817]
[1748943217125,6.2855,159.01,159.0,2.64872644]
[1748943217522,6.2855,159.01,158.99,6.33312153]
[1748943217728,6.2855,159.01,159.0,2.64872644]
[1748943217923,6.2855,159.01,158.99,6.33312153]
[1748943218125,8.43764822,159.02,159.0,2.6487174]
[1748943218427,8.43764822,159.02,158.99,6.33312153]
[1748943218621,8.43764822,159.02,159.0,2.64871869]
[1748943218821,8.43764822,159.02,158.99,6.33312153]
[1748943219325,8.43764822,159.02,159.0,8.93451888]
[1748943219625,0.04564822,159.02,159.01,6.2855]
[1748943220032,6.2841,159.05,159.01,6.55082577]
[1748943220228,33.0024,159.06,158.99,6.5978473]
[1748943220522,39.55322577,159.06,158.99,0.04702153]
[1748943221121,6.2849,159.03,159.0,6.2858]
[1748943221321,0.04406166,159.04,159.0,6.2858]
[1748943221530,0.04406166,159.04,158.99,0.04702153]
[1748943221726,6.2849,159.03,158.99,0.04702153]
[1748943221925,6.2849,159.03,159.0,2.64830664]
[1748943222127,6.2849,159.03,159.0,6.2857]
[1748943222329,6.2849,159.03,158.99,0.04702153]
[1748943222529,0.04406166,159.04,159.0,2.64834413]
[1748943222834,0.04406166,159.04,159.02,6.2848]
[1748943223328,6.32856166,159.04,159.02,6.2848]
[1748943224326,6.32856166,159.04,159.03,2.64767095]
[1748943224631,6.32856166,159.04,159.02,6.2848]
[1748943225824,6.32856166,159.04,159.01,6.2853]
[1748943226025,6.2847,159.03,159.02,2.64765487]
[1748943226226,6.2847,159.03,158.99,0.04702153]
[1748943226526,6.2847,159.03,159.01,6.2853]
[1748943227034,6.2847,159.03,159.02,2.64795543]
[1748943227227,6.2847,159.03,159.01,6.2853]
[1748943227430,6.32846166,159.04,159.02,2.64795543]
[1748943227630,6.32846166,159.04,159.01,6.2853]
[1748943228633,0.04406166,159.04,159.01,6.2853]
[1748943228831,0.04406166,159.04,159.02,2.64740969]
[1748943229040,6.32866166,159.04,159.03,2.64744902]
[1748943229224,6.32866166,159.04,159.01,6.2853]
[1748943229539,6.32866166,159.04,159.02,2.64747696]
[1748943229736,6.32866166,159.04,159.01,6.2853]
[1748943230126,6.32866166,159.04,159.02,2.64738357]
[1748943230333,6.32866166,159.04,159.01,6.2853]
[1748943230537,6.32866166,159.04,159.02,2.64783316]
[1748943230728,6.32866166,159.04,159.01,6.2853]
[1748943230937,6.32866166,159.04,159.02,6.2851]
[1748943231125,10.52052805,159.04,159.02,6.2851]
[1748943231331,6.32866166,159.04,159.02,6.2851]
[1748943231633,6.32866166,159.04,159.03,2.64789225]
[1748943231832,6.32866166,159.04,159.02,6.2851]
[1748943232025,6.32866166,159.04,159.01,4.19186639]
[1748943232026,0.04406166,159.04,159.03,8.93261119]
[1748943232229,0.04406166,159.04,159.03,6.2847]
[1748943232431,0.04406166,159.04,159.03,8.93275904]
[1748943232633,0.04406166,159.04,159.03,6.2847]
[1748943232931,0.04406166,159.04,159.03,8.93275904]
[1748943233129,0.04406166,159.04,159.03,6.2847]
[1748943233731,6.32836166,159.04,159.02,4.19186639]
[1748943234833,6.32836166,159.04,159.02,10.47676639]
[1748943235040,6.32836166,159.04,159.03,2.6481051]
[1748943235528,6.32836166,159.04,159.02,10.47676639]
[1748943235943,6.2847,159.03,159.01,10.47716639]
[1748943236134,6.2847,159.03,159.02,2.65163764]
[1748943236438,6.2847,159.03,159.01,10.47716639]
[1748943236640,6.32846166,159.04,159.01,10.47716639]
[1748943236942,6.32846166,159.04,159.02,2.65156605]
[1748943237234,6.32846166,159.04,159.03,2.6516406]
[1748943237441,6.32846166,159.04,159.01,10.47716639]
[1748943237640,6.32846166,159.04,159.02,6.285]
[1748943238347,6.2847,159.03,159.01,10.47716639]
[1748943238642,6.2847,159.03,159.01,6.2853]
[1748943238830,6.2847,159.03,159.02,2.65135738]
[1748943239035,6.2847,159.03,159.01,6.2853]
[1748943239539,6.2847,159.03,159.02,2.65156258]
[1748943239738,6.2847,159.03,159.02,2.65154086]
[1748943239936,6.2847,159.03,159.01,10.47716639]
[1748943240341,6.2847,159.03,159.02,2.65158909]
[1748943240644,6.2847,159.03,159.01,10.47716639]
[1748943241235,6.2847,159.03,159.02,2.65206402]
[1748943241438,6.2847,159.03,159.01,10.47716639]
[1748943242235,6.2847,159.03,159.02,2.65200468]
[1748943242440,10.52042805,159.04,159.02,8.93714385]
[1748943242640,10.52042805,159.04,159.02,6.2851]
[1748943242838,0.04406166,159.04,159.03,6.2847]
[1748943243746,0.04406166,159.04,159.03,8.9364928]
[1748943244040,0.04406166,159.04,159.03,8.93642721]
[1748943244242,0.04406166,159.04,159.03,10.47656639]
[1748943244447,35.07186639,159.09,159.07,6.2831]
[1748943244847,4.19186639,159.08,159.04,4.19186639]
[1748943245047,4.19186639,159.08,159.05,2.65094584]
[1748943245246,4.19186639,159.08,159.06,2.65092981]
[1748943245247,6.2829,159.08,159.06,2.65092981]
[1748943245449,6.2829,159.08,159.06,6.2834]
[1748943246150,41.39835243,159.09,159.06,6.2834]
[1748943246346,41.39835243,159.09,159.07,6.2831]
[1748943246347,37.20648604,159.09,159.07,6.2831]
[1748943246542,41.39835243,159.09,159.05,0.04217419]
[1748943247049,41.39835243,159.09,159.06,8.93308716]
[1748943247345,41.39835243,159.09,159.06,6.2833]
[1748943248054,41.39835243,159.09,159.07,2.65000036]
[1748943248255,41.39835243,159.09,159.06,6.2833]
[1748943248553,41.39835243,159.09,159.07,2.65000056]
[1748943248756,41.39835243,159.09,159.06,6.2833]
[1748943249355,41.39835243,159.09,159.07,2.65241611]
[1748943249551,30.92398604,159.09,159.06,4.19186639]
[1748943249753,0.04398604,159.09,159.06,4.19186639]
[1748943250052,0.04398604,159.09,159.08,6.2827]
[1748943250445,0.04398604,159.09,159.08,13.12658354]
[1748943250647,0.04398604,159.09,159.08,10.47456639]
[1748943250851,0.04398604,159.09,159.08,13.12559204]
[1748943251053,0.04398604,159.09,159.08,10.47456639]
[1748943251643,0.04398604,159.09,159.08,13.12505374]
[1748943251845,0.04398604,159.09,159.08,10.47456639]
[1748943252254,0.04398604,159.09,159.08,13.12406035]
[1748943252556,0.04398604,159.09,159.08,13.12348821]
[1748943252744,0.04398604,159.09,159.08,13.12336789]
[1748943252945,0.04398604,159.09,159.08,13.1233707]
[1748943253154,0.04398604,159.09,159.08,2.64923064]
[1748943253354,0.04398604,159.09,159.08,4.19186639]
[1748943254145,0.04398604,159.09,159.08,10.47456639]
[1748943254345,0.04398604,159.09,159.08,13.12381517]
[1748943254752,0.04398604,159.09,159.08,10.47456639]
[1748943255458,6.32628604,159.09,159.08,4.19186639]
[1748943256351,0.04398604,159.09,159.08,4.19186639]
[1748943256552,0.04398604,159.09,159.08,6.8411679]
[1748943256751,0.04398604,159.09,159.08,4.19186639]
[1748943258364,0.04398604,159.09,159.08,6.8389519]
[1748943258365,6.32628604,159.09,159.08,6.8389519]
[1748943258662,6.32628604,159.09,159.05,30.92217419]
[1748943258663,0.04398604,159.09,159.07,4.19186639]
[1748943259553,6.2827,159.08,159.07,4.19186639]
[1748943260658,6.2827,159.08,159.05,30.92217419]
[1748943260659,6.2827,159.08,159.05,37.20587419]
[1748943260957,0.04398604,159.09,159.06,4.19186639]
[1748943261162,0.04398604,159.09,159.06,10.47506639]
[1748943261356,0.04398604,159.09,159.06,4.19186639]
[1748943261662,0.04398604,159.09,159.07,4.19186639]
[1748943261858,0.04398604,159.09,159.07,10.47476639]
[1748943265271,6.32638604,159.09,159.07,10.47476639]
[1748943266066,6.32638604,159.09,159.07,4.19186639]
[1748943267170,6.32638604,159.09,159.06,10.47516639]
[1748943269375,6.32638604,159.09,159.07,6.2831]
[1748943270166,0.04398604,159.09,159.07,6.2831]
[1748943270962,6.32628604,159.09,159.07,6.2831]
[1748943272873,0.04398604,159.09,159.07,6.2831]
[1748943273772,0.04398604,159.09,159.08,6.2827]
[1748943274275,0.04398604,159.09,159.07,6.2829]
[1748943274478,0.04398604,159.09,159.07,10.47476639]
[1748943275875,6.32628604,159.09,159.07,10.47476639]
[1748943277573,0.04398604,159.09,159.08,4.19186639]
[1748943278076,0.04398604,159.09,159.08,10.47456639]
[1748943285378,0.04398604,159.09,159.08,16.33006853]
[1748943285781,0.04398604,159.09,159.08,16.33357772]
[1748943286082,0.04398604,159.09,159.08,18.98021331]
[1748943286378,0.04398604,159.09,159.08,16.33357772]
[1748943286883,0.04398604,159.09,159.08,18.98021562]
[1748943287081,0.04398604,159.09,159.08,18.98021543]
[1748943287281,0.04398604,159.09,159.08,18.98021562]
[1748943287487,0.04398604,159.09,159.08,16.33357772]
[1748943287778,8.604e-05,159.09,159.08,13.12118566]
[1748943287977,30.88,159.15,159.08,4.19186639]
[1748943288179,35.05186639,159.18,159.14,4.19186639]
[1748943288680,8.2679,159.17,159.15,6.2798]
[1748943289178,1.9885,159.17,159.14,4.23670125]
[1748943289484,1.9885,159.17,159.16,4.19186639]
[1748943289880,30.90687511,159.18,159.16,4.19186639]
[1748943290684,30.90687511,159.18,159.16,10.47126639]
[1748943291088,0.04687511,159.18,159.17,10.47106639]
[1748943291285,0.04687511,159.18,159.17,13.11538918]
[1748943291791,0.04687511,159.18,159.17,10.47106639]
[1748943292382,0.04687511,159.18,159.17,13.11576368]
[1748943292590,0.04687511,159.18,159.17,10.47106639]
[1748943293586,0.04687511,159.18,159.17,13.11515104]
[1748943293782,0.04687511,159.18,159.17,13.11519349]
[1748943293984,0.04687511,159.18,159.17,10.47106639]
[1748943295593,0.04687511,159.18,159.17,13.11385155]
[1748943295799,0.04687511,159.18,159.17,10.47106639]
[1748943296198,0.04687511,159.18,159.17,13.1138459]
[1748943296405,0.04687511,159.18,159.17,10.47106639]
[1748943297497,8.2673,159.22,159.19,6.278]